fUST/lending_fUST_20250530
["ID","MTS","AMOUNT","RATE_DAILY","PERIOD"]
[363061449,1748563846081,-430.0,0.0002,2]
[363061451,1748563846090,-430.0,0.0002,2]
[363061453,1748563846099,-435.92001821,0.0002,2]
[363061455,1748563846108,-430.0,0.0002,2]
[363061457,1748563846118,-541.88,0.0002,2]
[363061459,1748563846127,-430.0,0.0002,2]
[363061461,1748563846136,-430.0,0.0002,2]
[363061462,1748563846146,-430.0,0.0002,2]
[363061464,1748563846155,-430.0,0.0002,2]
[363061466,1748563846164,-430.0,0.0002,2]
[363061469,1748563846176,-430.0,0.0002,2]
[363061470,1748563846188,-430.0,0.0002,2]
[363061472,1748563846197,-430.0,0.0002,2]
[363061474,1748563846206,-430.0,0.0002,2]
[363061476,1748563846215,-430.0,0.0002,2]
[363061478,1748563846224,-430.0,0.0002,2]
[363061480,1748563846233,-430.0,0.0002,2]
[363061482,1748563846242,-430.0,0.0002,2]
[363061484,1748563846251,-430.0,0.0002,2]
[363061486,1748563846260,-443.43,0.0002,2]
[363061488,1748563846269,-430.0,0.0002,2]
[363061491,1748563846278,-430.0,0.0002,2]
[363061493,1748563846288,-430.0,0.0002,2]
[363061495,1748563846297,-430.0,0.0002,2]
[363061497,1748563846307,-430.0,0.0002,2]
[363061499,1748563846317,-430.0,0.0002,2]
[363061501,1748563846326,-430.0,0.0002,2]
[363061503,1748563846336,-430.0,0.0002,2]
[363061505,1748563846345,-430.0,0.0002,2]
[363061507,1748563846355,-430.0,0.0002,2]
[363061509,1748563846364,-430.0,0.0002,2]
[363061511,1748563846374,-430.0,0.0002,2]
[363061513,1748563846384,-430.0,0.0002,2]
[363061515,1748563846393,-430.0,0.0002,2]
[363061517,1748563846403,-430.0,0.0002,2]
[363061519,1748563846412,-350.64307993,0.0002,2]
[363061521,1748563846422,-449.95,0.0002,2]
[363061523,1748563846431,-430.0,0.0002,2]
[363061525,1748563846440,-430.0,0.0002,2]
[363061527,1748563846450,-562.73,0.0002,2]
[363061529,1748563846459,-430.0,0.0002,2]
[363061531,1748563846468,-477.77,0.0002,2]
[363061533,1748563846478,-430.0,0.0002,2]
[363061535,1748563846487,-441.49321264,0.0002,2]
[363061537,1748563846496,-430.0,0.0002,2]
[363061539,1748563846505,-430.0,0.0002,2]
[363061541,1748563846515,-430.0,0.0002,2]
[363061543,1748563846524,-430.0,0.0002,2]
[363061545,1748563846534,-430.0,0.0002,2]
[363061547,1748563846543,-478.05264455,0.0002,2]
[363061549,1748563846552,-430.0,0.0002,2]
[363061551,1748563846562,-439.45953224,0.0002,2]
[363061552,1748563846572,-550.0,0.0002,2]
[363061555,1748563846582,-430.0,0.0002,2]
[363061556,1748563846591,-716.53,0.0002,2]
[363061558,1748563846601,-430.0,0.0002,2]
[363061561,1748563846610,-430.0,0.0002,2]
[363061562,1748563846620,-430.0,0.0002,2]
[363061564,1748563846629,-430.0,0.0002,2]
[363061566,1748563846639,-430.0,0.0002,2]
[363061568,1748563846648,-430.0,0.0002,2]
[363061570,1748563846658,-430.0,0.0002,2]
[363061572,1748563846668,-430.0,0.0002,2]
[363061575,1748563846677,-207.77321708,0.0002,2]
[363061577,1748563846687,-430.0,0.0002,2]
[363061578,1748563846697,-460.42,0.0002,2]
[363061579,1748563846707,-430.0,0.0002,2]
[363061580,1748563846716,-430.0,0.0002,2]
[363061581,1748563846726,-430.0,0.0002,2]
[363061582,1748563846736,-430.0,0.0002,2]
[363061583,1748563846745,-430.0,0.0002,2]
[363061592,1748563846853,-430.0,0.0002,2]
[363061595,1748563846864,-430.0,0.0002,2]
[363061596,1748563846873,-340.78336282,0.0002,2]
[363061599,1748563846883,-798.7,0.0002,2]
[363061601,1748563846892,-430.0,0.0002,2]
[363061603,1748563846902,-430.0,0.0002,2]
[363061605,1748563846912,-1234.2,0.0002,2]
[363061607,1748563846921,-430.0,0.0002,2]
[363061609,1748563846930,-430.0,0.0002,2]
[363061611,1748563846940,-1225.6,0.0002,2]
[363061613,1748563846949,-430.0,0.0002,2]
[363061615,1748563846959,-430.0,0.0002,2]
[363061617,1748563846969,-430.0,0.0002,2]
[363061619,1748563846978,-430.0,0.0002,2]
[363061621,1748563846987,-430.0,0.0002,2]
[363061623,1748563846997,-430.0,0.0002,2]
[363061625,1748563847006,-331.94647272,0.0002,2]
[363061627,1748563847015,-1492.67,0.0002,2]
[363061629,1748563847024,-444.67,0.0002,2]
[363061631,1748563847034,-434.69325037,0.0002,2]
[363061633,1748563847043,-526.76,0.0002,2]
[363061635,1748563847053,-430.0,0.0002,2]
[363061637,1748563847063,-430.0,0.0002,2]
[363061639,1748563847074,-487.92,0.0002,2]
[363061641,1748563847084,-515.72,0.0002,2]
[363061643,1748563847094,-559.38,0.0002,2]
[363061645,1748563847103,-187.56,0.0002,2]
[363061647,1748563847113,-957.2,0.0002,2]
[363061649,1748563847122,-430.0,0.0002,2]
[363061651,1748563847131,-430.0,0.0002,2]
[363061653,1748563847140,-536.57,0.0002,2]
[363061655,1748563847150,-577.72,0.0002,2]
[363061657,1748563847159,-436.29107751,0.0002,2]
[363061659,1748563847168,-430.0,0.0002,2]
[363061661,1748563847178,-624.71,0.0002,2]
[363061663,1748563847188,-430.0,0.0002,2]
[363061665,1748563847198,-430.0,0.0002,2]
[363061667,1748563847208,-620.57,0.0002,2]
[363061669,1748563847217,-430.0,0.0002,2]
[363061671,1748563847227,-478.48,0.0002,2]
[363061673,1748563847236,-430.0,0.0002,2]
[363061675,1748563847246,-430.0,0.0002,2]
[363061677,1748563847255,-430.0,0.0002,2]
[363061679,1748563847266,-430.0,0.0002,2]
[363061681,1748563847275,-554.02,0.0002,2]
[363061683,1748563847285,-430.0,0.0002,2]
[363061685,1748563847294,-430.0,0.0002,2]
[363061687,1748563847303,-430.0,0.0002,2]
[363061689,1748563847314,-1770.1,0.0002,2]
[363061691,1748563847324,-430.0,0.0002,2]
[363061693,1748563847333,-430.0,0.0002,2]
[363061695,1748563847343,-430.0,0.0002,2]
[363061697,1748563847352,-1220.07,0.0002,2]
[363061699,1748563847361,-2953.35,0.0002,2]
[363061701,1748563847371,-720.75,0.0002,2]
[363061703,1748563847380,-430.0,0.0002,2]
[363061705,1748563847390,-430.0,0.0002,2]
[363061707,1748563847399,-2051.81,0.0002,2]
[363061709,1748563847409,-440.69683744,0.0002,2]
[363061711,1748563847418,-430.0,0.0002,2]
[363061713,1748563847428,-1677.14,0.0002,2]
[363061715,1748563847437,-520.66,0.0002,2]
[363061717,1748563847447,-430.0,0.0002,2]
[363061719,1748563847456,-430.0,0.0002,2]
[363061721,1748563847466,-364.06,0.0002,2]
[363061723,1748563847476,-430.0,0.0002,2]
[363061725,1748563847486,-430.0,0.0002,2]
[363061727,1748563847496,-430.0,0.0002,2]
[363061729,1748563847506,-430.0,0.0002,2]
[363061730,1748563847516,-179.16,0.0002,2]
[363061732,1748563847526,-430.0,0.0002,2]
[363061735,1748563847537,-430.0,0.0002,2]
[363061737,1748563847547,-430.0,0.0002,2]
[363061739,1748563847557,-430.0,0.0002,2]
[363061741,1748563847568,-430.0,0.0002,2]
[363061743,1748563847578,-481.01,0.0002,2]
[363061745,1748563847589,-430.0,0.0002,2]
[363061747,1748563847598,-344.86793959,0.0002,2]
[363061748,1748563847607,-482.26,0.0002,2]
[363061750,1748563847617,-1043.58,0.0002,2]
[363061752,1748563847626,-430.0,0.0002,4]
[363061754,1748563847636,-430.0,0.0002,2]
[363061756,1748563847646,-430.0,0.0002,2]
[363061759,1748563847655,-498.38289887,0.0002,2]
[363061761,1748563847665,-566.2316988,0.0002,4]
[363061763,1748563847675,-430.0,0.0002,2]
[363061765,1748563847684,-430.0,0.0002,2]
[363061767,1748563847694,-430.0,0.0002,2]
[363061769,1748563847703,-970.3,0.0002,2]
[363061771,1748563847713,-430.0,0.0002,2]
[363061773,1748563847722,-430.0,0.0002,2]
[363061775,1748563847732,-430.0,0.0002,2]
[363061777,1748563847741,-435.07019828,0.0002,2]
[363061779,1748563847751,-578.8,0.0002,2]
[363061781,1748563847760,-657.96,0.0002,2]
[363061783,1748563847769,-430.0,0.0002,2]
[363061785,1748563847778,-365.31,0.0002,2]
[363061787,1748563847789,-430.0,0.0002,2]
[363061789,1748563847799,-430.0,0.0002,2]
[363061791,1748563847809,-430.0,0.0002,2]
[363061793,1748563847819,-430.0,0.0002,2]
[363061794,1748563847828,-430.0,0.0002,2]
[363061796,1748563847838,-430.0,0.0002,2]
[363061799,1748563847848,-430.0,0.0002,2]
[363061800,1748563847857,-4076.95694337,0.00020009,2]
[363061803,1748563847867,-500.0,0.00020021,2]
[363061805,1748563847877,-1000.0,0.00020021,2]
[363061806,1748563847886,-1007.344078,0.00020187,2]
[363061808,1748563847895,-1017.39866528,0.00020268,2]
[363061810,1748563847905,-430.0,0.00020273,2]
[363061812,1748563847914,-456.6365004,0.00020273,2]
[363061814,1748563847924,-430.0,0.00020273,2]
[363061816,1748563847933,-310.2,0.00020273,2]
[363061818,1748563847942,-430.0,0.00020273,2]
[363061820,1748563847951,-430.0,0.00020273,2]
[363061823,1748563847961,-430.0,0.00020273,2]
[363061825,1748563847971,-430.0,0.00020273,2]
[363061827,1748563847980,-500.0,0.00020273,2]
[363061828,1748563847989,-430.0,0.00020273,2]
[363061831,1748563847999,-430.0,0.00020273,2]
[363061833,1748563848008,-430.0,0.00020273,2]
[363061834,1748563848018,-430.0,0.00020273,2]
[363061836,1748563848027,-567.38709909,0.00020273,2]
[363061838,1748563848037,-541.88,0.00020273,2]
[363061840,1748563848046,-340.54967705,0.00020273,2]
[363061843,1748563848058,-430.0,0.00020273,2]
[363061844,1748563848070,-430.0,0.00020273,2]
[363061846,1748563848080,-430.0,0.00020273,2]
[363061849,1748563848091,-432.25482467,0.00020273,2]
[363061850,1748563848101,-430.0,0.00020273,2]
[363061852,1748563848110,-430.0,0.00020273,2]
[363061855,1748563848120,-430.0,0.00020273,2]
[363061857,1748563848130,-430.0,0.00020273,2]
[363061858,1748563848140,-430.0,0.00020273,2]
[363061860,1748563848149,-443.43,0.00020273,2]
[363061862,1748563848159,-430.0,0.00020273,2]
[363061864,1748563848168,-430.0,0.00020273,2]
[363061866,1748563848179,-430.0,0.00020273,2]
[363061868,1748563848190,-490.0,0.00020273,2]
[363061870,1748563848200,-496.54650798,0.00020273,2]
[363061872,1748563848210,-430.0,0.00020273,2]
[363061874,1748563848219,-430.0,0.00020273,2]
[363061876,1748563848228,-430.0,0.00020273,2]
[363061878,1748563848238,-562.73,0.00020273,2]
[363061880,1748563848247,-477.77,0.00020273,2]
[363061882,1748563848257,-437.15110351,0.00020273,2]
[363061884,1748563848266,-430.0,0.00020273,2]
[363061886,1748563848276,-716.53,0.00020273,2]
[363061888,1748563848286,-571.45381942,0.00020273,2]
[363061890,1748563848295,-430.0,0.00020273,2]
[363061892,1748563848305,-430.0,0.00020273,2]
[363061894,1748563848315,-430.0,0.00020273,2]
[363061896,1748563848324,-430.0,0.00020273,2]
[363061898,1748563848333,-430.0,0.00020273,2]
[363061900,1748563848343,-471.69,0.00020273,2]
[363061902,1748563848352,-460.42,0.00020273,2]
[363061904,1748563848362,-430.0,0.00020273,2]
[363061906,1748563848371,-430.0,0.00020273,2]
[363061908,1748563848381,-430.0,0.00020273,2]
[363061910,1748563848390,-430.0,0.00020273,2]
[363061912,1748563848400,-430.0,0.00020273,2]
[363061914,1748563848409,-430.0,0.00020273,2]
[363061916,1748563848419,-798.7,0.00020273,2]
[363061918,1748563848429,-303.63,0.00020273,2]
[363061920,1748563848439,-430.0,0.00020273,2]
[363061922,1748563848449,-1234.2,0.00020273,2]
[363061924,1748563848458,-430.0,0.00020273,2]
[363061926,1748563848468,-1225.6,0.00020273,2]
[363061928,1748563848477,-430.0,0.00020273,2]
[363061930,1748563848486,-430.0,0.00020273,2]
[363061932,1748563848495,-430.0,0.00020273,2]
[363061934,1748563848505,-430.0,0.00020273,2]
[363061936,1748563848514,-430.0,0.00020273,2]
[363061938,1748563848523,-1492.67,0.00020273,2]
[363061940,1748563848533,-444.67,0.00020273,2]
[363061942,1748563848542,-526.76,0.00020273,2]
[363061944,1748563848551,-312.02,0.00020273,2]
[363061946,1748563848561,-487.92,0.00020273,2]
[363061948,1748563848572,-957.2,0.00020273,2]
[363061950,1748563848582,-303.52,0.00020273,2]
[363061952,1748563848592,-536.57,0.00020273,2]
[363061954,1748563848601,-624.71,0.00020273,2]
[363061956,1748563848611,-430.0,0.00020273,2]
[363061958,1748563848620,-620.57,0.00020273,2]
[363061960,1748563848629,-430.0,0.00020273,2]
[363061962,1748563848639,-478.48,0.00020273,2]
[363061964,1748563848648,-430.0,0.00020273,2]
[363061966,1748563848658,-430.0,0.00020273,2]
[363061968,1748563848667,-554.02,0.00020273,2]
[363061970,1748563848676,-430.0,0.00020273,2]
[363061972,1748563848686,-1770.1,0.00020273,2]
[363061974,1748563848696,-430.0,0.00020273,2]
[363061976,1748563848706,-1220.07,0.00020273,2]
[363061977,1748563848716,-2953.35,0.00020273,2]
[363061979,1748563848726,-720.75,0.00020273,2]
[363061981,1748563848736,-430.0,0.00020273,2]
[363061983,1748563848746,-2051.81,0.00020273,2]
[363061985,1748563848755,-430.0,0.00020273,2]
[363061987,1748563848766,-1677.14,0.00020273,2]
[363061989,1748563848776,-520.66,0.00020273,2]
[363061991,1748563848786,-430.0,0.00020273,2]
[363061993,1748563848799,-211.6,0.00020273,2]
[363061995,1748563848808,-430.0,0.00020273,2]
[363061997,1748563848819,-478.17,0.00020273,2]
[363061999,1748563848829,-430.0,0.00020273,2]
[363062001,1748563848839,-430.0,0.00020273,2]
[363062013,1748563848954,-430.0,0.00020273,2]
[363062015,1748563848965,-481.01,0.00020273,2]
[363062017,1748563848975,-376.73957545,0.00020273,2]
[363062019,1748563848984,-482.26,0.00020273,2]
[363062021,1748563848995,-1043.58,0.00020273,2]
[363062023,1748563849004,-430.0,0.00020273,2]
[363062025,1748563849014,-430.0,0.00020273,2]
[363062027,1748563849024,-430.0,0.00020273,2]
[363062029,1748563849034,-219.84,0.00020273,2]
[363062031,1748563849044,-970.3,0.00020273,2]
[363062033,1748563849053,-430.0,0.00020273,2]
[363062035,1748563849063,-430.0,0.00020273,2]
[363062037,1748563849077,-578.8,0.00020273,2]
[363062039,1748563849087,-657.96,0.00020273,2]
[363062041,1748563849096,-430.0,0.00020273,2]
[363062043,1748563849107,-430.0,0.00020273,2]
[363062045,1748563849117,-430.0,0.00020273,2]
[363062046,1748563849127,-430.0,0.00020273,2]
[363062049,1748563849137,-151.0,0.00020314,2]
[363062051,1748563849147,-151.0,0.00020314,2]
[363062053,1748563849157,-430.331,0.00020316,2]
[363062055,1748563849167,-160.0,0.00020359,2]
[363062056,1748563849176,-160.0,0.00020359,2]
[363062059,1748563849186,-229.26895353,0.00020383,2]
[363062060,1748563849196,-160.0,0.00020383,2]
[363062062,1748563849206,-12660.97845086,0.00020383,2]
[363062064,1748563849216,-212.70147903,0.00020383,2]
[363062066,1748563849225,-160.0,0.00020383,2]
[363062068,1748563849234,-842.5625,0.00020383,2]
[363062070,1748563849244,-423.31762986,0.00020383,2]
[363062072,1748563849254,-160.0,0.00020383,2]
[363062074,1748563849264,-160.0,0.00020383,2]
[363062076,1748563849273,-430.0,0.00020547,2]
[363062078,1748563849282,-430.0,0.00020547,2]
[363062080,1748563849292,-500.0,0.00020547,2]
[363062082,1748563849302,-430.0,0.00020547,2]
[363062084,1748563849312,-430.0,0.00020547,2]
[363062086,1748563849324,-430.0,0.00020547,2]
[363062088,1748563849335,-430.0,0.00020547,2]
[363062090,1748563849345,-541.88,0.00020547,2]
[363062092,1748563849354,-430.0,0.00020547,2]
[363062094,1748563849364,-430.0,0.00020547,2]
[363062096,1748563849374,-450.14059653,0.00020547,2]
[363062098,1748563849384,-430.0,0.00020547,2]
[363062100,1748563849394,-430.0,0.00020547,2]
[363062102,1748563849404,-450.0,0.00020547,2]
[363062104,1748563849414,-443.43,0.00020547,2]
[363062106,1748563849424,-430.0,0.00020547,2]
[363062108,1748563849434,-430.0,0.00020547,2]
[363062110,1748563849444,-430.0,0.00020547,2]
[363062112,1748563849454,-430.0,0.00020547,2]
[363062114,1748563849464,-430.0,0.00020547,2]
[363062116,1748563849474,-562.73,0.00020547,2]
[363062118,1748563849484,-477.77,0.00020547,2]
[363062120,1748563849494,-471.26695898,0.00020547,2]
[363062122,1748563849504,-716.53,0.00020547,2]
[363062124,1748563849514,-430.0,0.00020547,2]
[363062126,1748563849524,-430.0,0.00020547,2]
[363062128,1748563849534,-430.0,0.00020547,2]
[363062130,1748563849545,-460.42,0.00020547,2]
[363062132,1748563849555,-430.0,0.00020547,2]
[363062134,1748563849565,-430.0,0.00020547,2]
[363062136,1748563849575,-430.0,0.00020547,2]
[363062138,1748563849585,-430.0,0.00020547,2]
[363062140,1748563849594,-430.0,0.00020547,2]
[363062142,1748563849604,-798.7,0.00020547,2]
[363062143,1748563849613,-430.0,0.00020547,2]
[363062145,1748563849623,-1234.2,0.00020547,2]
[363062148,1748563849633,-430.0,0.00020547,2]
[363062150,1748563849643,-1225.6,0.00020547,2]
[363062151,1748563849653,-446.53269205,0.00020547,2]
[363062153,1748563849663,-430.0,0.00020547,2]
[363062155,1748563849673,-520.48619459,0.00020547,2]
[363062157,1748563849683,-430.0,0.00020547,2]
[363062159,1748563849693,-1492.67,0.00020547,2]
[363062161,1748563849703,-444.67,0.00020547,2]
[363062163,1748563849714,-526.76,0.00020547,2]
[363062165,1748563849724,-487.92,0.00020547,2]
[363062167,1748563849734,-957.2,0.00020547,2]
[363062169,1748563849744,-536.57,0.00020547,2]
[363062171,1748563849754,-624.71,0.00020547,2]
[363062173,1748563849763,-430.0,0.00020547,2]
[363062175,1748563849772,-620.57,0.00020547,2]
[363062177,1748563849782,-430.0,0.00020547,2]
[363062179,1748563849794,-478.48,0.00020547,2]
[363062181,1748563849804,-151.0,0.00020547,2]
[363062183,1748563849813,-430.0,0.00020547,2]
[363062185,1748563849825,-151.0,0.00020547,2]
[363062187,1748563849836,-554.02,0.00020547,2]
[363062189,1748563849847,-430.0,0.00020547,2]
[363062191,1748563849856,-1770.1,0.00020547,2]
[363062193,1748563849866,-430.0,0.00020547,2]
[363062194,1748563849879,-1220.07,0.00020547,2]
[363062196,1748563849889,-2953.35,0.00020547,2]
[363062198,1748563849899,-720.75,0.00020547,2]
[363062200,1748563849909,-558.61,0.00020547,2]
[363062202,1748563849918,-2051.81,0.00020547,2]
[363062204,1748563849927,-430.0,0.00020547,2]
[363062206,1748563849937,-1677.14,0.00020547,2]
[363062208,1748563849946,-1600.87226,0.00020547,2]
[363062210,1748563849956,-520.66,0.00020547,2]
[363062212,1748563849966,-430.0,0.00020547,2]
[363062214,1748563849975,-1600.87226,0.00020547,2]
[363062216,1748563849984,-430.0,0.00020547,2]
[363062218,1748563849994,-430.0,0.00020547,2]
[363062220,1748563850003,-430.0,0.00020547,2]
[363062222,1748563850014,-430.0,0.00020547,2]
[363062224,1748563850023,-481.01,0.00020547,2]
[363062226,1748563850032,-482.26,0.00020547,2]
[363062228,1748563850042,-1043.58,0.00020547,2]
[363062230,1748563850051,-430.0,0.00020547,2]
[363062232,1748563850060,-430.0,0.00020547,2]
[363062234,1748563850071,-151.0,0.00020547,2]
[363062236,1748563850081,-430.0,0.00020547,2]
[363062238,1748563850091,-970.3,0.00020547,2]
[363062240,1748563850100,-430.0,0.00020547,2]
[363062241,1748563850110,-430.0,0.00020547,2]
[363062243,1748563850119,-578.8,0.00020547,2]
[363062245,1748563850128,-657.96,0.00020547,2]
[363062247,1748563850138,-430.0,0.00020547,2]
[363062249,1748563850147,-451.03,0.00020547,2]
[363062251,1748563850156,-430.0,0.00020547,2]
[363062253,1748563850166,-253.78,0.00020547,2]
[363062255,1748563850175,-1500.0,0.00020568,2]
[363062257,1748563850184,-430.0,0.00020821,2]
[363062259,1748563850194,-430.0,0.00020821,2]
[363062261,1748563850203,-430.0,0.00020821,2]
[363062264,1748563850216,-537.87251858,0.00020821,2]
[363062266,1748563850225,-541.88,0.00020821,2]
[363062267,1748563850234,-430.0,0.00020821,2]
[363062269,1748563850243,-488.35283248,0.00020821,2]
[363062271,1748563850252,-430.0,0.00020821,2]
[363062273,1748563850261,-443.43,0.00020821,2]
[363062275,1748563850270,-430.0,0.00020821,2]
[363062277,1748563850280,-430.0,0.00020821,2]
[363062279,1748563850290,-430.0,0.00020821,2]
[363062281,1748563850299,-355.22,0.00020821,2]
[363062283,1748563850309,-562.73,0.00020821,2]
[363062285,1748563850319,-477.77,0.00020821,2]
[363062287,1748563850329,-716.53,0.00020821,2]
[363062290,1748563850341,-430.0,0.00020821,2]
[363062291,1748563850350,-430.0,0.00020821,2]
[363062293,1748563850360,-430.0,0.00020821,2]
[363062295,1748563850369,-151.0,0.00020821,2]
[363062297,1748563850379,-151.0,0.00020821,2]
[363062299,1748563850389,-460.42,0.00020821,2]
[363062301,1748563850398,-442.25,0.00020821,2]
[363062303,1748563850408,-549.93,0.00020821,2]
[363062305,1748563850418,-430.0,0.00020821,2]
[363062307,1748563850427,-430.0,0.00020821,2]
[363062309,1748563850437,-211.18,0.00020821,2]
[363062311,1748563850446,-798.7,0.00020821,2]
[363062313,1748563850455,-430.0,0.00020821,2]
[363062315,1748563850466,-1234.2,0.00020821,2]
[363062317,1748563850476,-161.189129,0.00020821,2]
[363062319,1748563850485,-430.0,0.00020821,2]
[363062321,1748563850495,-1225.6,0.00020821,2]
[363062323,1748563850504,-161.189129,0.00020821,2]
[363062325,1748563850515,-536.07,0.00020821,2]
[363062327,1748563850524,-430.0,0.00020821,2]
[363062329,1748563850534,-1492.67,0.00020821,2]
[363062331,1748563850544,-444.67,0.00020821,2]
[363062333,1748563850553,-526.76,0.00020821,2]
[363062335,1748563850562,-487.92,0.00020821,2]
[363062337,1748563850573,-957.2,0.00020821,2]
[363062339,1748563850583,-536.57,0.00020821,2]
[363062341,1748563850592,-624.71,0.00020821,2]
[363062343,1748563850602,-430.0,0.00020821,2]
[363062345,1748563850612,-620.57,0.00020821,2]
[363062347,1748563850622,-430.0,0.00020821,2]
[363062349,1748563850632,-478.48,0.00020821,2]
[363062351,1748563850641,-430.0,0.00020821,2]
[363062353,1748563850651,-554.02,0.00020821,2]
[363062355,1748563850660,-1770.1,0.00020821,2]
[363062356,1748563850669,-430.0,0.00020821,2]
[363062358,1748563850678,-1220.07,0.00020821,2]
[363062360,1748563850688,-2953.35,0.00020821,2]
[363062362,1748563850697,-720.75,0.00020821,2]
[363062364,1748563850706,-2051.81,0.00020821,2]
[363062366,1748563850716,-430.0,0.00020821,2]
[363062368,1748563850726,-1677.14,0.00020821,2]
[363062370,1748563850735,-520.66,0.00020821,2]
[363062372,1748563850744,-430.0,0.00020821,2]
[363062374,1748563850753,-1233.620844,0.00020821,2]
[363062376,1748563850763,-430.0,0.00020821,2]
[363062378,1748563850772,-1233.620844,0.00020821,2]
[363062380,1748563850781,-430.0,0.00020821,2]
[363062391,1748563850883,-430.0,0.00020821,2]
[363062393,1748563850894,-430.0,0.00020821,2]
[363062395,1748563850906,-481.01,0.00020821,2]
[363062397,1748563850915,-482.26,0.00020821,2]
[363062398,1748563850925,-1043.58,0.00020821,2]
[363062399,1748563850935,-430.0,0.00020821,2]
[363062400,1748563850944,-437.329235,0.00020821,2]
[363062401,1748563850954,-430.0,0.00020821,2]
[363062402,1748563850965,-437.329235,0.00020821,2]
[363062403,1748563850976,-430.0,0.00020821,2]
[363062404,1748563850987,-970.3,0.00020821,2]
[363062405,1748563850996,-238.76,0.00020821,2]
[363062406,1748563851005,-430.0,0.00020821,2]
[363062407,1748563851015,-578.8,0.00020821,2]
[363062408,1748563851024,-657.96,0.00020821,2]
[363062409,1748563851034,-430.0,0.00020821,2]
[363062410,1748563851043,-573.3,0.00020821,2]
[363062411,1748563851053,-1561.56877705,0.000209,4]
[363062412,1748563851062,-4076.95694337,0.00020939,2]
[363062413,1748563851073,-700.0,0.00020963,2]
[363062414,1748563851083,-1561.56877676,0.00021038,4]
[363062415,1748563851093,-430.0,0.00021095,2]
[363062416,1748563851104,-430.0,0.00021095,2]
[363062417,1748563851114,-430.0,0.00021095,2]
[363062418,1748563851124,-541.88,0.00021095,2]
[363062420,1748563851133,-430.0,0.00021095,2]
[363062422,1748563851143,-241.22900655,0.00021095,2]
[363062424,1748563851152,-443.43,0.00021095,2]
[363062426,1748563851161,-430.0,0.00021095,2]
[363062428,1748563851170,-207.33748749,0.00021095,2]
[363062430,1748563851180,-430.0,0.00021095,2]
[363062432,1748563851189,-562.73,0.00021095,2]
[363062434,1748563851198,-477.77,0.00021095,2]
[363062436,1748563851207,-716.53,0.00021095,2]
[363062438,1748563851216,-430.0,0.00021095,2]
[363062440,1748563851225,-430.0,0.00021095,2]